bitfinex-derivatives/quotes_ETHF0:USTF0_20250627
["timestamp","ask_amount","ask_price","bid_price","bid_amount"]
[1751051824905,0.83134,2404.7,2404.5,29.3188]
[1751051825399,0.83131,2404.8,2404.5,29.3188]
[1751051825705,2.22119,2404.8,2404.5,29.3188]
[1751051826002,0.83133,2404.7,2404.5,3.2078]
[1751051826192,0.83133,2404.7,2404.6,26.112]
[1751051827009,0.83136,2404.6,2404.5,29.3188]
[1751051827209,2.22126,2404.6,2404.5,29.3188]
[1751051827607,2.22126,2404.6,2404.5,29.3168]
[1751051828013,1.3899,2404.6,2404.2,44.0078]
[1751051828205,0.83143,2404.4,2404.3,26.111]
[1751051828910,0.83146,2404.4,2404.2,3.2078]
[1751051829110,2.28466,2404.4,2404.2,3.2078]
[1751051829297,1.4532,2404.4,2404.2,4.03929]
[1751051829498,1.4532,2404.4,2404.2,3.2078]
[1751051829811,0.83146,2404.3,2404.2,3.2078]
[1751051830510,0.83146,2404.3,2404.2,29.3158]
[1751051830709,0.8565,2404.3,2403.9,44.0078]
[1751051830915,0.83153,2404.1,2404.0,26.109]
[1751051831111,1.4532,2404.2,2403.9,3.2078]
[1751051831303,0.83157,2404.0,2403.9,3.2078]
[1751051831609,1.4532,2404.2,2403.9,3.2078]
[1751051831810,0.83157,2404.0,2403.9,3.2078]
[1751051832009,0.83157,2404.0,2403.9,29.3148]
[1751051832407,0.83157,2404.0,2403.9,3.2078]
[1751051832408,5.82707,2404.0,2403.9,3.2078]
[1751051832807,0.83171,2403.6,2403.5,6.985]
[1751051833106,0.83181,2403.3,2403.2,70.1128]
[1751051833609,0.83181,2403.3,2403.2,29.3118]
[1751051834211,0.83179,2403.4,2403.2,29.3118]
[1751051834402,0.83181,2403.3,2403.2,29.3118]
[1751051834604,0.83181,2403.3,2403.2,3.2078]
[1751051834808,0.83181,2403.3,2403.2,29.3148]
[1751051835605,0.83181,2403.3,2403.0,41.6798]
[1751051835606,0.83188,2403.1,2403.0,41.6798]
[1751051835911,0.83191,2403.0,2402.9,3.2078]
[1751051836213,0.83191,2403.0,2402.9,29.3118]
[1751051836908,5.8274,2403.1,2402.9,30.14375]
[1751051837108,5.82739,2403.1,2402.9,30.14374]
[1751051837412,0.83191,2403.0,2402.9,29.3118]
[1751051837814,0.9168,2403.2,2402.9,29.3118]
[1751051838011,0.83191,2403.0,2402.9,29.3118]
[1751051838210,0.9168,2403.2,2402.9,29.3118]
[1751051838418,0.83188,2403.1,2402.9,30.14373]
[1751051838713,0.83187,2403.2,2403.0,0.83191]
[1751051838909,0.83187,2403.2,2403.0,1.73581]
[1751051839214,0.83188,2403.1,2403.0,0.9039]
[1751051839408,0.83191,2403.0,2402.9,29.3118]
[1751051840001,4.9955,2403.3,2402.9,29.3118]
[1751051840211,0.8319,2403.1,2402.9,30.14372]
[1751051841109,0.83187,2403.2,2402.9,30.14372]
[1751051841299,0.8319,2403.1,2402.9,30.14372]
[1751051841504,0.8319,2403.1,2403.0,0.83191]
[1751051841710,4.9955,2403.3,2403.0,0.83191]
[1751051841711,0.83186,2403.2,2403.0,0.83191]
[1751051842111,0.83191,2403.0,2402.9,29.3118]
[1751051842310,0.8319,2403.1,2402.9,30.14373]
[1751051842709,0.83191,2403.0,2402.9,29.3118]
[1751051842916,0.83191,2403.0,2402.9,30.7907]
[1751051843115,0.83191,2403.0,2402.9,31.62265]
[1751051843719,0.83191,2403.0,2402.9,30.7907]
[1751051844017,0.83191,2403.0,2402.9,31.62265]
[1751051844407,5.82739,2403.1,2402.9,31.62265]
[1751051844611,0.83191,2403.0,2402.9,30.7907]
[1751051844817,5.8274,2403.1,2402.9,31.62263]
[1751051845016,0.83191,2403.0,2402.9,31.62263]
[1751051845305,4.9955,2403.1,2402.7,40.8]
[1751051845306,0.83198,2402.8,2402.7,40.8]
[1751051845506,0.83202,2402.7,2402.6,11.1007]
[1751051845710,0.83202,2402.7,2402.6,29.3088]
[1751051846119,0.83202,2402.7,2402.6,3.2078]
[1751051846612,0.83202,2402.7,2402.6,29.3098]
[1751051846813,0.83202,2402.7,2402.6,29.3088]
[1751051847009,2.25152,2402.7,2402.6,29.3088]
[1751051847412,2.25152,2402.7,2402.6,3.2078]
[1751051849121,0.83205,2402.6,2402.5,26.102]
[1751051849323,2.17595,2402.6,2402.5,26.102]
[1751051850214,2.17595,2402.6,2402.5,26.1]
[1751051851422,0.83212,2402.4,2402.3,3.2078]
[1751051851821,0.83212,2402.4,2402.3,29.3068]
[1751051852015,0.83212,2402.4,2402.3,3.2078]
[1751051852214,5.82762,2402.4,2402.3,29.3068]
[1751051852615,5.82762,2402.4,2402.3,30.13896]
[1751051852616,4.9955,2402.4,2402.3,30.13896]
[1751051852815,0.83206,2402.6,2402.4,0.83212]
[1751051853015,4.9955,2402.6,2402.4,0.83212]
[1751051853213,4.9955,2402.6,2402.5,9.08271655]
[1751051853426,3.2078,2402.9,2402.5,9.08271655]
[1751051853427,0.83198,2402.8,2402.6,0.83202]
[1751051853722,0.83198,2402.9,2402.7,28.35112]
[1751051854122,0.83198,2402.8,2402.7,28.35112]
[1751051854321,0.83198,2402.8,2402.7,27.5191]
[1751051854523,8.2033,2403.2,2402.7,27.5191]
[1751051854727,8.2033,2403.2,2402.8,1.4221]
[1751051854924,0.83195,2402.9,2402.8,1.4221]
[1751051855122,8.2033,2403.2,2402.8,1.4221]
[1751051855417,0.83188,2403.1,2403.0,3.2078]
[1751051855618,0.83202,2402.8,2402.7,3.2078]
[1751051856324,5.82752,2402.8,2402.7,3.2078]
[1751051857930,5.82752,2402.8,2402.7,29.3028]
[1751051858823,0.8321,2402.5,2402.4,3.2078]
[1751051859121,0.8321,2402.5,2402.4,29.3008]
[1751051860631,0.83212,2402.4,2402.3,0.8407]
[1751051860935,0.83212,2402.4,2402.3,26.09]
[1751051862628,0.83211,2402.5,2402.3,26.92216]
[1751051862829,0.83212,2402.4,2402.3,26.09]
[1751051863029,0.83211,2402.5,2402.3,28.33926]
[1751051863330,0.83212,2402.4,2402.3,28.33926]
[1751051863525,0.83211,2402.5,2402.3,28.33926]
[1751051863729,4.9955,2402.8,2402.4,3.2078]
[1751051863730,0.83207,2402.6,2402.4,3.2078]
[1751051863930,0.83207,2402.6,2402.5,0.918]
[1751051864224,0.83207,2402.6,2402.5,2.3351]
[1751051864425,8.2033,2403.0,2402.5,7.3351]
[1751051864630,8.2033,2403.0,2402.8,4.03978]
[1751051864631,1.04136508,2402.9,2402.8,4.03978]
[1751051864824,0.83195,2402.9,2402.8,29.2928]
[1751051865028,1.87323431,2402.9,2402.8,29.2928]
[1751051865429,0.83195,2402.9,2402.8,29.2928]
[1751051865827,0.83194,2403.0,2402.8,30.12478]
[1751051866328,0.83195,2402.9,2402.8,29.2928]
[1751051866832,4.9955,2403.2,2402.8,29.2928]
[1751051867033,0.83188,2403.1,2402.9,0.83193]
[1751051867632,0.83188,2403.1,2402.9,1.68093]
[1751051868135,0.8319,2403.1,2402.9,1.68093]
[1751051868628,0.83191,2403.0,2402.9,0.849]
[1751051869137,0.83195,2402.9,2402.8,29.2928]
[1751051870532,0.83195,2402.9,2402.8,3.2078]
[1751051870733,0.83195,2402.9,2402.8,29.2858]
[1751051870734,3.09435,2402.9,2402.8,29.2858]
[1751051872840,6.70543,2403.0,2402.8,29.2858]
[1751051873038,0.83195,2402.9,2402.8,29.2858]
[1751051873340,0.83193,2403.0,2402.8,30.11777]
[1751051873928,0.83191,2403.0,2402.9,0.83195]
[1751051874432,0.8319,2403.1,2402.8,29.2858]
[1751051874639,5.82738,2403.2,2403.0,0.83191]
[1751051874936,0.83188,2403.2,2403.1,26.90288]
[1751051875136,0.83188,2403.2,2403.1,26.071]
[1751051875343,1.87321808,2403.2,2403.1,26.071]
[1751051875537,3.33721808,2403.2,2403.1,26.071]
[1751051875728,1.87321808,2403.2,2403.1,26.071]
[1751051876235,0.83188,2403.2,2403.1,26.071]
[1751051877646,6.7422,2403.4,2403.1,26.071]
[1751051877941,0.83184,2403.2,2403.1,26.071]
[1751051878641,0.83184,2403.2,2403.1,29.2788]
[1751051881354,0.83195,2402.9,2402.8,3.2078]
[1751051881642,0.83195,2402.9,2402.8,29.2688]
[1751051882036,0.83195,2402.9,2402.8,29.2678]
[1751051883045,3.07805,2402.9,2402.8,29.2678]
[1751051883434,0.83207,2402.6,2402.4,3.3007301]
[1751051883639,0.83204,2402.7,2402.5,29.3607301]
[1751051883840,5.8334,2402.9,2402.7,0.83202]
[1751051884142,0.83196,2402.9,2402.8,26.058]
[1751051885740,0.83194,2403.0,2402.8,26.88998]
[1751051885942,0.83195,2402.9,2402.8,26.058]
[1751051886445,0.83195,2402.9,2402.8,26.8485]
[1751051887148,0.83193,2403.0,2402.8,27.68048]
[1751051887351,0.83193,2403.0,2402.8,29.11078]
[1751051887639,0.83195,2402.9,2402.8,28.2788]
[1751051888046,3.2078,2403.1,2402.8,26.8485]
[1751051888243,0.83195,2402.9,2402.8,26.8485]
[1751051889446,0.83195,2402.9,2402.8,27.68048]
[1751051890140,0.83194,2403.0,2402.8,27.68048]
[1751051890652,3.2078,2403.1,2402.8,26.8485]
[1751051890848,3.2078,2403.1,2403.0,0.83191]
[1751051891740,0.83194,2403.0,2402.8,27.68046]
[1751051891953,0.83195,2402.9,2402.8,26.058]
[1751051892454,1.3924,2403.0,2402.6,3.3007301]
[1751051892649,1.61428,2402.8,2402.7,26.048]
[1751051892854,0.83205,2402.6,2402.5,13.4525301]
[1751051893056,0.83205,2402.6,2402.5,6.944]
[1751051893352,2.2177,2402.7,2402.4,3.3007301]
[1751051893353,0.83209,2402.5,2402.4,3.3007301]
[1751051893548,2.22449,2402.5,2402.4,29.3487301]
[1751051894552,2.22449,2402.5,2402.4,26.048]
[1751051896847,5.8208,2402.7,2402.4,26.88012]
[1751051897055,0.83205,2402.6,2402.4,26.88012]
[1751051897249,0.83209,2402.5,2402.4,26.88012]
[1751051897551,4.9955,2402.7,2402.4,26.048]
[1751051897752,1.6143,2402.8,2402.6,0.83204]
[1751051897944,1.6143,2402.8,2402.7,26.044]
[1751051898141,1.26097,2402.9,2402.7,26.87602]
[1751051898346,1.26097,2402.9,2402.8,0.83198]
[1751051898347,0.83197,2402.9,2402.8,0.83198]
[1751051898645,0.83198,2402.8,2402.7,26.87599]
[1751051898849,0.83198,2402.8,2402.7,26.044]
[1751051899257,0.83197,2402.9,2402.7,26.87602]
[1751051899553,0.83193,2403.0,2402.8,0.83195]
[1751051899751,0.83193,2403.0,2402.9,0.83195]
[1751051899953,4.1021,2403.1,2402.9,0.83195]
[1751051900152,4.1021,2403.1,2403.0,26.041]
[1751051900351,5.5725,2403.1,2403.0,26.041]
[1751051900658,4.7406,2403.1,2403.0,26.87291]
[1751051900856,3.2702,2403.1,2403.0,26.041]
[1751051901052,3.2078,2403.1,2403.0,26.87291]
[1751051901751,0.7912,2403.3,2403.0,26.041]
[1751051901944,0.83182,2403.3,2403.0,26.041]
[1751051902150,4.9955,2403.4,2403.0,26.041]
[1751051902151,4.9955,2403.4,2403.0,28.23539]
[1751051902351,0.83188,2403.1,2403.0,28.23539]
[1751051902552,0.83188,2403.1,2403.0,26.041]
[1751051902841,0.83188,2403.1,2402.9,0.83193]
[1751051903046,6.4143,2403.4,2402.8,4.03976]
[1751051903248,0.83194,2403.0,2402.9,26.036]
[1751051903453,4.9955,2403.1,2403.0,0.83191]
[1751051903953,0.83181,2403.4,2403.2,0.83184]
[1751051904142,0.83181,2403.4,2403.3,26.86681]
[1751051904342,0.83181,2403.4,2403.3,26.035]
[1751051904952,0.83184,2403.2,2403.1,0.83186]
[1751051905255,0.83184,2403.2,2403.1,26.86486]
[1751051905456,0.83184,2403.3,2403.1,26.86486]
[1751051905657,2.2364,2403.4,2403.2,0.83183]
[1751051905963,0.83181,2403.3,2403.1,26.86485]
[1751051906153,0.83181,2403.3,2403.2,0.83184]
[1751051906347,0.8318,2403.4,2403.2,0.83184]
[1751051906542,0.8318,2403.4,2403.3,0.83181]
[1751051906953,0.8318,2403.4,2403.2,0.83182]
[1751051907157,0.83183,2403.3,2403.1,26.86486]
[1751051907453,0.83177,2403.4,2403.2,0.83184]
[1751051907653,5.864,2403.5,2403.1,26.86486]
[1751051908245,0.83181,2403.3,2403.2,0.83184]
[1751051908647,0.83181,2403.3,2403.1,26.86485]
[1751051908847,2.21399,2403.4,2403.2,0.83184]
[1751051909254,0.83181,2403.3,2403.2,0.83184]
[1751051909457,2.214,2403.4,2403.2,0.83184]
[1751051909653,2.214,2403.4,2403.3,0.83181]
[1751051910166,2.214,2403.4,2403.2,0.83182]
[1751051910355,0.83181,2403.3,2403.2,0.83182]
[1751051910552,2.21399,2403.4,2403.2,0.83182]
[1751051910752,2.21399,2403.4,2403.1,29.2408]
[1751051910753,1.3822,2403.4,2403.1,30.07266]
[1751051910953,0.83184,2403.3,2403.1,30.07266]
[1751051911161,0.83184,2403.2,2403.1,30.07266]
[1751051912461,0.83183,2403.3,2403.2,0.83184]
[1751051912761,0.83184,2403.2,2403.1,29.2408]
[1751051913054,0.83184,2403.2,2403.1,30.07268]
[1751051913463,0.83184,2403.2,2403.1,29.2408]
[1751051913657,0.83184,2403.2,2403.1,3.2078]
[1751051913856,0.83184,2403.2,2403.1,29.2288]
[1751051914058,0.83184,2403.2,2403.1,3.2078]
[1751051914260,0.83184,2403.2,2403.1,29.2278]
[1751051914654,3.08774,2403.2,2403.1,3.2078]
[1751051915162,0.83188,2403.1,2403.0,26.019]
[1751051915359,0.83188,2403.1,2402.8,6.943]
[1751051915360,0.83195,2402.9,2402.8,6.943]
[1751051915561,0.83195,2402.9,2402.8,32.963]
[1751051915958,0.83195,2402.9,2402.8,6.943]
[1751051916262,0.83195,2402.9,2402.8,32.961]
[1751051917253,0.8506,2403.1,2403.0,0.83191]
[1751051917455,0.8506,2403.1,2402.9,4.03973]
[1751051917456,1.6825,2403.1,2402.9,4.03973]
[1751051917661,3.0666,2403.1,2403.0,0.83191]
[1751051917962,1.68248,2403.1,2403.0,0.83191]
[1751051918158,3.06658,2403.1,2403.0,0.83191]
[1751051918864,3.06658,2403.1,2402.9,4.03972]
[1751051919356,3.06658,2403.1,2403.0,0.83191]
[1751051919662,2.2347,2403.1,2402.7,3.3007301]
[1751051919861,2.2347,2403.1,2402.6,7.3405601]
[1751051920166,0.83202,2402.7,2402.6,3.2078]
[1751051920362,0.83202,2402.7,2402.6,29.2208]
[1751051920973,0.83202,2402.7,2402.6,3.2078]
[1751051921166,0.83202,2402.7,2402.6,29.2198]
[1751051922368,0.83202,2402.7,2402.6,30.05185]
[1751051923372,0.832,2402.8,2402.6,30.05185]
[1751051923565,0.83202,2402.7,2402.6,30.05185]
[1751051923966,0.832,2402.8,2402.6,30.05185]
[1751051924273,1.3665,2402.9,2402.6,30.05185]
[1751051924570,0.83202,2402.7,2402.6,30.05185]
[1751051925071,0.83202,2402.7,2402.6,26.84405]
[1751051925463,0.83202,2402.7,2402.6,26.012]
[1751051925662,2.1943,2402.7,2402.6,26.009]
[1751051925965,6.2273,2402.7,2402.1,17.58647862]
[1751051926161,6.2273,2402.7,2402.2,26.83916]
[1751051926360,0.83213,2402.4,2402.2,26.83918]
[1751051926557,0.83216,2402.3,2402.2,26.83918]
[1751051926759,0.83216,2402.3,2402.1,48.1407401]
[1751051926961,0.83219,2402.2,2402.1,47.3085301]
[1751051927166,0.83222,2402.1,2402.0,3.3007301]
[1751051927365,1.65742,2402.1,2402.0,3.3007301]
[1751051927561,3.06472,2402.1,2402.0,29.3077301]
[1751051927868,3.2078,2403.2,2402.2,2.0804]
[1751051928067,3.9948,2403.2,2402.5,3.2078]
[1751051928272,1.3989,2403.1,2402.6,73.728]
[1751051928674,1.3989,2403.1,2403.0,0.83191]
[1751051928970,0.8252,2403.4,2403.3,0.83181]
[1751051929178,3.2078,2403.5,2403.3,26.83679]
[1751051929374,1.05407423,2403.4,2403.3,26.83679]
[1751051929567,3.2078,2403.5,2403.4,0.83177]
[1751051929876,4.26183593,2403.5,2403.4,0.83177]
[1751051930572,4.26183593,2403.5,2403.4,8.25379655]
[1751051930873,4.26183593,2403.5,2403.4,0.83177]
[1751051932475,3.2078,2403.5,2403.4,0.83177]
[1751051932675,3.2078,2403.5,2403.3,26.005]
[1751051932676,4.26179475,2403.5,2403.3,26.83679]
[1751051932879,3.2078,2403.5,2403.4,0.83177]
[1751051933179,4.26113021,2403.5,2403.3,26.005]
[1751051933372,4.26113021,2403.5,2403.0,0.8552]
[1751051933373,3.2078,2403.5,2403.0,0.8552]
[1751051933676,0.83184,2403.2,2403.1,25.998]
[1751051934075,4.03964,2403.2,2403.1,25.998]
[1751051934277,5.09312336,2403.2,2403.1,25.998]
[1751051934475,6.45852336,2403.2,2403.1,25.998]
[1751051934776,0.83194,2403.0,2402.8,6.922]
[1751051934971,5.62668336,2403.2,2402.8,6.922]
[1751051934972,0.83189,2403.1,2402.9,25.997]
[1751051935279,1.05355244,2403.0,2402.9,25.997]
[1751051935775,1.88547244,2403.0,2402.6,44.0078]
[1751051935986,1.3654,2403.0,2402.7,25.997]
[1751051936174,0.83196,2402.9,2402.7,26.829]
[1751051936373,0.83198,2402.8,2402.6,44.0078]
[1751051936574,2.19742,2402.7,2402.6,3.2078]
[1751051936774,2.2112,2402.7,2402.6,29.2038]
[1751051937075,2.2112,2402.7,2402.6,30.03585]
[1751051937271,4.99,2402.8,2402.7,0.83202]
[1751051937579,6.2165,2403.2,2402.7,0.83202]
[1751051937778,0.83193,2403.0,2402.8,0.83198]
[1751051937975,0.83193,2403.0,2402.9,25.995]
[1751051938879,2.28123,2403.0,2402.9,25.995]
[1751051939083,7.27123,2403.0,2402.9,25.995]
[1751051939378,4.99,2403.0,2402.9,26.82695]
[1751051939577,4.8511,2403.2,2402.9,25.995]
[1751051939774,0.83191,2403.0,2402.9,25.995]
[1751051939975,1.4493,2403.1,2403.0,0.83191]
[1751051940175,1.4493,2403.1,2402.9,25.995]
[1751051940176,0.83188,2403.1,2402.9,26.82692]
[1751051940377,0.83191,2403.0,2402.9,25.995]
[1751051943082,0.83202,2402.7,2402.6,3.3007301]
[1751051943382,0.83218,2402.3,2402.1,9.96314411]
[1751051943580,3.2078,2402.4,2402.1,30.14594852]
[1751051943882,3.2078,2402.4,2402.2,0.83217]
[1751051944077,2.1912,2402.6,2402.2,4.15594852]
[1751051944275,3.02325,2402.6,2402.5,3.31311021]
[1751051944881,0.8428,2402.6,2402.5,3.31311021]
[1751051945185,3.2078,2402.8,2402.5,0.83209]
[1751051945385,0.83202,2402.7,2402.6,3.31262735]
[1751051945584,4.0398,2402.8,2402.6,30.13465735]
[1751051945888,3.2078,2402.8,2402.7,0.83202]
[1751051946184,3.2078,2402.8,2402.7,4.14464735]
[1751051946582,0.83195,2402.9,2402.8,0.83197]
[1751051946888,0.83195,2402.9,2402.6,33.41202655]
[1751051946889,0.83195,2402.9,2402.7,0.832]
[1751051947090,1.67474,2403.0,2402.8,0.83198]
[1751051947290,1.67474,2403.0,2402.9,25.989]
[1751051947983,3.03454,2403.0,2402.9,25.989]
[1751051948788,0.83198,2402.8,2402.7,25.988]
[1751051949094,0.83195,2402.9,2402.7,26.81999]
[1751051949586,2.2026,2403.0,2402.7,25.988]
[1751051949985,0.83198,2402.8,2402.7,25.988]
[1751051950891,0.83198,2402.8,2402.7,26.82002]
[1751051951079,0.83202,2402.7,2402.5,10.23409552]
[1751051951281,0.832,2402.8,2402.6,26.81704]
[1751051951682,0.83197,2402.9,2402.7,0.83202]
[1751051951881,0.83197,2402.9,2402.6,25.985]
[1751051951882,0.83198,2402.8,2402.6,26.81703]
[1751051952480,7.1926,2403.0,2402.7,0.83202]
[1751051952688,5.8328,2403.0,2402.8,0.83198]
[1751051952893,0.83196,2402.9,2402.7,0.83199]
[1751051953089,0.83196,2402.9,2402.8,25.984]
[1751051954987,0.83196,2402.9,2402.7,0.83201]
[1751051955186,0.83197,2402.9,2402.8,25.981]
[1751051955387,0.83195,2402.9,2402.8,25.981]
[1751051956294,2.23895,2402.9,2402.8,25.981]
[1751051956685,6.66473,2403.0,2402.8,26.81296]
[1751051956887,0.83195,2402.9,2402.8,25.981]
[1751051958086,0.83198,2402.8,2402.7,3.2078]
[1751051958293,0.8428,2403.0,2402.7,29.1868]
[1751051958294,0.83197,2402.9,2402.7,29.1868]
[1751051958500,0.83197,2402.9,2402.8,0.83198]
[1751051958689,1.67473,2403.0,2402.8,0.83197]
[1751051959296,0.83195,2402.9,2402.8,0.83197]
[1751051959886,0.83195,2402.9,2402.7,30.01879]
[1751051960086,0.83195,2402.9,2402.8,0.83198]
[1751051960486,0.83198,2402.8,2402.7,30.01881]
[1751051961093,0.83198,2402.8,2402.7,29.1868]
[1751051961486,0.83205,2402.6,2402.5,6.904]
[1751051961682,0.83205,2402.6,2402.5,32.88]
[1751051962187,2.28614,2402.7,2402.6,0.83205]
[1751051962391,4.99,2402.8,2402.7,0.83202]
[1751051962587,0.83196,2402.9,2402.7,0.83202]
[1751051962793,0.83198,2402.8,2402.7,0.83202]
[1751051962994,0.83198,2402.8,2402.7,26.80802]
[1751051963489,0.83197,2402.9,2402.8,0.83198]
[1751051963696,0.83195,2402.9,2402.8,0.83198]
[1751051964493,6.66473,2403.0,2402.8,0.83198]
[1751051965892,5.8328,2403.0,2402.9,0.83195]
[1751051966292,3.2078,2403.4,2403.3,0.83181]
[1751051966487,4.25294881,2403.4,2403.3,26.80581]
[1751051967198,1.04514881,2403.4,2403.3,25.974]
[1751051967401,0.8574,2403.6,2403.5,0.83174]
[1751051967595,1.90259171,2403.6,2403.5,0.83174]
[1751051968602,0.8574,2403.6,2403.5,0.83174]
[1751051969096,0.8574,2403.6,2403.3,32.879]
[1751051969397,1.6891,2403.6,2403.4,0.83176]
[1751051969602,1.6891,2403.6,2403.5,0.83174]
[1751051969603,0.8574,2403.6,2403.5,0.83174]
[1751051970391,3.2078,2403.7,2403.5,0.83174]
[1751051970591,3.2078,2404.0,2403.6,25.968]
[1751051970796,1.04496,2403.9,2403.7,7.73565]
[1751051971097,0.8316,2403.9,2403.7,7.73565]
[1751051971595,3.2078,2404.0,2403.8,0.83164]
[1751051971800,3.2078,2404.0,2403.9,25.968]
[1751051972001,4.25231184,2404.0,2403.9,26.7996]
[1751051972703,3.2078,2404.0,2403.9,26.7996]
[1751051974100,4.03937,2404.0,2403.9,25.968]
[1751051974296,3.2078,2404.0,2403.9,26.7996]
[1751051974997,4.03937,2404.0,2403.9,26.7996]
[1751051975199,4.03937,2404.0,2403.9,25.968]
[1751051975601,0.8223,2404.1,2404.0,0.83157]
[1751051975798,0.83154,2404.1,2403.9,25.968]
[1751051976102,0.83154,2404.1,2404.0,0.83157]
[1751051976503,1.68662,2404.2,2404.0,0.83157]
[1751051976703,2.3294,2404.2,2404.1,0.83153]
[1751051976904,0.8551,2404.2,2404.1,0.83153]
[1751051977105,0.8241,2404.3,2404.2,0.8315]
[1751051977294,4.03924,2404.4,2404.2,25.957]
[1751051977701,0.83144,2404.4,2404.3,0.83146]
[1751051977901,0.83146,2404.3,2404.2,25.957]
[1751051978502,0.83146,2404.3,2404.2,26.7885]
[1751051978904,0.83146,2404.3,2404.2,25.957]
[1751051979206,0.8315,2404.2,2404.1,3.2078]
[1751051979408,3.1195,2404.2,2404.1,32.856]
[1751051981515,2.288,2404.2,2404.1,33.68753]
[1751051981720,0.83142,2404.5,2404.1,40.27802655]
[1751051982019,0.83142,2404.5,2404.4,0.83143]
[1751051982316,0.83142,2404.5,2404.4,26.78143]
[1751051982513,0.83142,2404.5,2404.4,25.95]
[1751051982912,2.24612,2404.5,2404.4,25.95]
[1751051984416,2.24612,2404.5,2404.4,26.78143]
[1751051984615,2.24612,2404.5,2404.4,25.95]
[1751051984816,0.83146,2404.3,2404.2,0.83147]
[1751051985017,0.83146,2404.3,2404.2,33.66347]
[1751051986619,1.4147,2404.5,2404.2,33.66347]
[1751051986820,0.83143,2404.4,2404.2,33.66347]
[1751051987422,0.83143,2404.4,2404.3,0.83146]
[1751051988020,0.83146,2404.3,2404.2,32.832]
[1751051988225,1.69896,2404.3,2404.2,32.832]
[1751051988426,1.69896,2404.3,2404.2,33.6635]
[1751051989824,1.4147,2404.5,2404.2,33.6635]
[1751051990026,6.7422,2404.6,2404.3,10.62982655]
[1751051990227,4.6384,2404.9,2404.7,0.83132]
[1751051990524,4.99,2404.8,2404.7,7.71733]
[1751051990723,3.2078,2404.9,2404.8,0.83129]
[1751051991222,4.99,2405.3,2404.7,77.7151]
[1751051991223,8.1978,2405.3,2404.7,77.7151]
[1751051991413,4.99,2405.3,2405.2,0.83115]
[1751051991618,1.70073,2405.6,2405.4,0.83107]
[1751051991818,0.8697,2405.6,2405.5,26.76905]
[1751051992020,4.99,2405.7,2405.6,0.83101]
[1751051992223,0.8216,2405.9,2405.7,0.83098]
[1751051992429,3.2078,2406.0,2405.8,25.937]
[1751051992624,3.2078,2406.0,2405.9,0.83091]
[1751051992830,3.2078,2406.0,2405.8,26.76793]
[1751051993330,0.83091,2405.9,2405.8,25.937]
[1751051993530,4.0387,2406.0,2405.8,25.937]
[1751051994027,0.83091,2405.9,2405.8,25.937]
[1751051994230,0.83095,2405.8,2405.6,3.2078]
[1751051994528,4.0387,2406.0,2405.7,33.64697]
[1751051994726,0.83091,2405.9,2405.7,33.64697]
[1751051994931,0.83095,2405.8,2405.6,3.2078]
[1751051995228,0.83093,2405.9,2405.7,32.815]
[1751051995624,0.83095,2405.8,2405.7,32.815]
[1751051996232,0.83095,2405.8,2405.7,73.615]
[1751051999229,0.83098,2405.7,2405.6,6.883]
[1751051999424,0.83098,2405.7,2405.2,4.0377]
[1751051999425,0.83112,2405.3,2405.2,3.2078]
[1751051999730,0.83121,2405.1,2405.0,6.883]
[1751051999930,2.24508,2405.2,2405.0,33.63321]
[1751052000132,0.83107,2405.5,2405.1,7.42202655]
[1751052000335,6.3199,2405.7,2405.2,69.9268]
[1751052000533,0.83112,2405.3,2405.2,69.9268]
[1751052000834,6.3199,2405.7,2405.2,69.9268]
[1751052001038,0.83109,2405.4,2405.2,70.75793]
[1751052001633,6.3199,2405.7,2405.2,70.75793]
[1751052001932,0.83112,2405.3,2405.2,69.9268]
[1751052002635,6.3199,2405.7,2405.2,69.9268]
[1751052002827,0.83106,2405.5,2405.3,0.8311]
[1751052003025,0.83106,2405.5,2405.4,32.799]
[1751052004629,0.83119,2405.1,2405.0,6.882]
[1751052004832,0.83119,2405.1,2405.0,32.797]
[1751052005227,0.7332,2405.3,2405.0,32.797]
[1751052005433,6.09728,2405.7,2405.0,40.21902655]
[1751052005434,0.83107,2405.5,2405.0,40.21902655]
[1751052005629,4.99,2405.5,2405.4,0.83108]
[1751052005827,4.99,2405.5,2405.4,33.62708]
[1751052007137,3.2078,2405.7,2405.5,0.83103]
[1751052007138,4.03878,2405.7,2405.5,0.83103]
[1751052007338,4.03878,2405.7,2405.6,25.913]
[1751052008032,0.83098,2405.7,2405.6,25.913]
[1751052008538,0.83097,2405.8,2405.6,26.74401]
[1751052008735,0.7332,2405.9,2405.8,0.83095]
[1751052008944,3.2078,2406.0,2405.9,0.83091]
[1751052010437,0.8308,2406.3,2406.1,0.83083]
[1751052010641,4.78075,2406.4,2406.2,26.74081]
[1751052010840,0.83077,2406.3,2406.2,25.91]
[1751052013335,0.83088,2406.0,2405.9,3.2078]
[1751052013534,0.83088,2406.0,2405.9,35.9968]
[1751052014538,0.83087,2406.1,2405.9,36.82771]
[1751052014733,0.83083,2406.2,2406.0,0.83086]
[1751052014938,0.83083,2406.2,2406.1,25.903]
[1751052016241,3.95,2406.4,2406.0,0.83087]
[1751052016242,0.83084,2406.1,2406.0,0.83087]